Workbook

Sheet Меню раскладка 1 день
B1: Меню-раскладка 1 день
A3: Наименование блюда | B3: номер рецептуры по сборнику | C3: масса порций, в гр | E3: Пищевая ценность | K3: Энергетическая ценность | M3: Витамин С
E4: белки | G4: жиры | I4: углеводы
A5: Завтрак | C5: 1-3 года | D5: 3-7 лет | E5: 1-3 года | F5: 3-7 лет | G5: 1-3 года | H5: 3-7 лет | I5: 1-3 года | J5: 3-7 лет | K5: 1-3 года | L5: 3-7 лет | M5: 1-3 года | N5: 3-7 лет
A6: Суп молочный с крупой (пшенный) | B6: 101 | C6: 150 | D6: 180 | E6: 5.41 | F6: 6.69 | G6: 6.7 | H6: 8.04 | I6: 16.92 | J6: 19.8 | K6: 149.6 | L6: 178.32 | M6: 1.36 | N6: 1.63
A7: молоко 2,5 % | C7: 125 | D7: 150
A8: пшено | C8: 16 | D8: 20
A9: вода | C9: 25 | D9: 30
A10: сахарный песок | C10: 2 | D10: 3
A11: соль | C11: 1 | D11: 1
A12: масло сливочное 72,5% | C12: 2 | D12: 3
A14: Какао с молоком | B14: 416 | C14: 150 | D14: 200 | E14: 3.06 | F14: 4.08 | G14: 2.96 | H14: 3.94 | I14: 12.47 | J14: 16.6 | K14: 87.6 | L14: 116.8 | M14: 1.07 | N14: 1.42
A15: какао | C15: 2 | D15: 2
A16: сахарный песок | C16: 8 | D16: 10
A17: молоко 2,5% | C17: 92 | D17: 122
A18: вода | C18: 65 | D18: 87
A20: Бутерброд с сыром | B20: 1 | C20: 40/10 | D20: 50/10 | E20: 0.34 | F20: 0.45 | G20: 0.19 | H20: 0.24 | I20: 13.22 | J20: 16.53 | K20: 55.95 | L20: 70 | M20: 0 | N20: 0
A21: батон | C21: 40 | D21: 50
A22: сыр | C22: 10 | D22: 10
A24: Итого: | E24: =E20+E14+E6 -> 8.81 | F24: =F20+F14+F6 -> 11.22 | G24: 9.85 | H24: 12.22 | I24: 42.61 | J24: 52.93 | K24: 293.15 | L24: =L20+L14+L6 -> 365.12 | M24: 2.43 | N24: 3.05
A26: 2-ой завтрак
A27: Кисломолочный продукт | B27: 420 | C27: 150 | D27: 180 | E27: 3.4 | F27: 4.08 | G27: 3.75 | H27: 4.5 | I27: 6 | J27: 7.2 | K27: 71.35 | L27: 85.6 | M27: 0 | N27: 0
A28: Итого: | E28: 3.4 | F28: 4.08 | G28: 3.75 | H28: 4.5 | I28: 6 | J28: 7.2 | K28: 71.35 | L28: 85.6 | M28: 0 | N28: 0
A30: Обед
A31: Огурцы свежие | B31: 15 | C31: 40 | D31: 60 | E31: 0.32 | F31: 0.48 | G31: 0.04 | H31: 0.06 | I31: 1.04 | J31: 1.56 | K31: 5.8 | L31: 8.7 | M31: 1.72 | N31: 2.61
A32: Огурцы свежие | C32: 43/40 | D32: 63/60
A34: Борщ с капустой и картофелем со сметаной на мкб | B34: 63 | C34: 180/10/7 | D34: 200/12/8 | E34: 4.69 | F34: 5.23 | G34: 4.51 | H34: 5.03 | I34: 7.17 | J34: 9.58 | K34: 117.34 | L34: 136.82 | M34: 11.22 | N34: 11.8
A35: говядина на кости | C35: 22/16 | D35: 25/19
A36: свекла | C36: 40/29 | D36: 44/32
A37: капуста белокочанная | C37: 34/28 | D37: 36/30
A38: картофель | C38: 53/32 | D38: 61/37
A39: морковь свежая | C39: 12/9 | D39: 14/11
A40: лук репчатый | C40: 8/7 | D40: 9/8
A41: томатная паста | C41: 6 | D41: 7
A42: сахарный песок | C42: 2 | D42: 2
A43: соль | C43: 1 | D43: 1
A44: масло растительное | C44: 2 | D44: 3
A45: вода | C45: 144 | D45: 160
A46: сметана 15% | C46: 7 | D46: 8
A48: Картофельное пюре | B48: 339 | C48: 120 | D48: 130 | E48: 2.62 | F48: 2.96 | G48: 4.47 | H48: 4.72 | I48: 32 | J48: 34.6 | K48: 178.71 | L48: 192.72 | M48: 18.2 | N48: 20.7
A49: Картофель | C49: 180/108 | D49: 195/117
A50: молоко 2,5% | C50: 19 | D50: 21
A51: масло сливочное 72,5% | C51: 4 | D51: 5
A52: соль | C52: 0.3 | D52: 0.4
A54: Котлета из говядины | B54: 299 | C54: 50 | D54: 70 | E54: 5.19 | F54: 7.2 | G54: 6.44 | H54: 9.72 | I54: 6.7 | J54: 11.24 | K54: 104.32 | L54: 161.24 | M54: 0.4 | N54: 0.6
A55: мясо говядины на кости | C55: 50/37 | D55: 60/44
A56: хлеб пшеничный | C56: 9 | D56: 11
A57: вода | C57: 7 | D57: 8
A58: лук репчатый | C58: 5/4 | D58: 6/5
A59: сухари панировочные | C59: 4 | D59: 5
A60: соль | C60: 0,3 | D60: 0,4
A61: масло растительное | C61: 1 | D61: 1
A62: яйцо куриное | C62: 2 | D62: 3
A65: Хлеб ржано -пшеничный | C65: 30 | D65: 50 | E65: 1.91 | F65: 3.19 | G65: 0.24 | H65: 0.4 | I65: 12.43 | J65: 20.71 | K65: 52.61 | L65: 99.2 | M65: 0 | N65: 0
A67: Чай с сахаром | B67: 411 | C67: 150/8 | D67: 200/10 | E67: 0.11 | F67: 0.15 | G67: 0.03 | H67: 0.04 | I67: 9.1 | J67: 12.13 | K67: 41.37 | L67: 55.16 | M67: 0.075 | N67: 0.1
A68: Чай заварка (сухая) | C68: 0.5 | D68: 0.7
A69: Сахарный песок | C69: 8 | D69: 10
A70: вода | C70: 157 | D70: 210
A72: Итого: | E72: 14.84 | F72: 19.21 | G72: 15.73 | H72: 19.97 | I72: 68.44 | J72: 89.82 | K72: 500.15 | L72: 653.84 | M72: 31.615 | N72: 35.81
A74: Полдник
A75: Булочка с повидлом | B75: 441 | C75: 50 | D75: 60 | E75: 4.8 | F75: 6.6 | G75: 6.73 | H75: 8.9 | I75: 10.8 | J75: 16.4 | K75: 122.97 | L75: 172.1 | M75: 0.15 | N75: 0.15
A76: Для теста: | B76: 436 | C76: 40 | D76: 45
A77: мука | C77: 26 | D77: 29
A78: молоко 2,5% | C78: 9 | D78: 10
A79: вода | C79: 5 | D79: 5
A80: масло растительное | C80: 3 | D80: 3
A81: соль | C81: 1 | D81: 1
A82: дрожжи сухие | C82: 1 | D82: 1
A83: сахарный песок | C83: 1 | D83: 1
A84: яйцо куриное | C84: 2 | D84: 2
A86: Повидло | C86: 25 | D86: 25
A87: мука в/с | C87: 2 | D87: 2
A88: масло растительное | C88: 1 | D88: 1
A90: Фрукт | B90: 386 | C90: 85 | D90: 85 | E90: 1.2 | F90: 1.2 | G90: 0.12 | H90: 0.12 | I90: 5.18 | J90: 5.18 | K90: 21.77 | L90: 21.77 | M90: 0.1 | N90: 0.1
A93: Кисель | B93: 359 | C93: 150 | D93: 180 | E93: 0 | F93: 0 | G93: 0 | H93: 0 | I93: 15.68 | J93: 18.82 | K93: 62.93 | L93: 75.5 | M93: 0 | N93: 0
A94: Кисель концентрат | C94: 18 | D94: 22
A95: вода | C95: 150 | D95: 180
A96: Итого: | E96: 6 | F96: 7.8 | G96: 6.85 | H96: 9.02 | I96: 31.66 | J96: 40.4 | K96: 207.67 | L96: 269.37 | M96: 0.25 | N96: 0.25
A97: Итого за 1 день: | E97: =E96+E72+E28+E24 -> 33.05 | F97: 42.31 | G97: 36.18 | H97: 45.71 | I97: 148.71 | J97: 190.35 | K97: 1072.32 | L97: 1373.93 | M97: 34.295 | N97: 39.11

Sheet Меню раскладка 2 день
B1: Меню-раскладка 2 день
A3: Наименование блюда | B3: номер рецептуры по сборнику | C3: масса порций, в гр. | E3: Пищевая ценность | K3: Энергетическая ценность | M3: Витамин С
E4: белки | G4: жиры | I4: углеводы
A5: Завтрак | C5: 1-3 года | D5: 3-7 лет | E5: 1-3 года | F5: 3-7 лет | G5: 1-3 года | H5: 3-7 лет | I5: 1-3 года | J5: 3-7 лет | K5: 1-3 года | L5: 3-7 лет | M5: 1-3 года | N5: 3-7 лет
A6: Запеканка творожная с изюмом и со сгущенкой | B6: 251 | C6: 110/20 | D6: 130/20 | E6: 4.1 | F6: 4.84 | G6: 5.35 | H6: 6.32 | I6: 17.62 | J6: 20.8 | K6: 135.03 | L6: 159.44 | M6: 0.72 | N6: 0.77
A7: творог 5% | C7: 101 | D7: 119
A8: манная крупа | C8: 7 | D8: 8
A9: молоко 2,5% | C9: 27 | D9: 32
A10: сметана 15% | C10: 6 | D10: 7
A11: яйцо куриное | C11: 6 | D11: 7
A12: сахарный песок | C12: 10 | D12: 12
A13: масло сливочное 72,5% | C13: 6 | D13: 7
A14: изюм | C14: 8 | D14: 9
A15: сухари | C15: 6 | D15: 7
A16: молоко сгущенное | C16: 20 | D16: 20
A18: Кофейный напиток с молоком | B18: 414 | C18: 180 | D18: 200 | E18: 2.52 | F18: 2.8 | G18: 2.59 | H18: 2.87 | I18: 13.68 | J18: 15.2 | K18: 87.14 | L18: 96.82 | M18: 1.17 | N18: 1.75
A19: кофейный напиток | C19: 2 | D19: 3
A20: сахарный песок | C20: 9 | D20: 10
A21: молоко 2,5% | C21: 90 | D21: 100
A22: вода | C22: 108 | D22: 120
A24: Бутерброд с маслом и сыром | B24: 3 | C24: 30/10/10 | D24: 55 | E24: 2.2 | F24: 3.7 | G24: 1.82 | H24: 2.95 | I24: 11.31 | J24: 15.99 | K24: 70.42 | L24: 105.31 | M24: 0.02 | N24: 0.02
A25: батон | C25: 30 | D25: 30
A26: масло сливочное 72,5% | C26: 10 | D26: 10
A27: сыр твердый | C27: 10 | D27: 15
A28: Итого: | E28: =E24+E18+E6 -> 8.82 | F28: 11.34 | G28: 9.76 | H28: 12.14 | I28: 42.61 | J28: 51.99 | K28: 292.59 | L28: 361.57 | M28: 1.91 | N28: 2.54
A30: 2-ой завтрак
A31: Сок | B31: 418 | C31: 150 | D31: 180 | E31: 0.75 | F31: 0.9 | G31: 0 | H31: 0 | I31: 8.99 | J31: 10.8 | K31: 61.56 | L31: 73.87 | M31: 3.24 | N31: 3.9
A32: Итого: | E32: 0.75 | F32: 0.9 | G32: 0 | H32: 0 | I32: 8.99 | J32: 10.8 | K32: 61.56 | L32: 73.87 | M32: 3.24 | N32: 3.9
A34: Обед
A35: Салат из белокочанной капусты | B35: 21 | C35: 40 | D35: 60 | E35: 0.57 | F35: 0.86 | G35: 1.81 | H35: 2.74 | I35: 3.86 | J35: 5.23 | K35: 37.54 | L35: 49.18 | M35: 13.21 | N35: 13.9
A36: капуста | C36: 40/32 | D36: 60/48
A37: морковь | C37: 7/6 | D37: 10/8
A38: масло растительное | C38: 4 | D38: 6
A39: сахарный песок | C39: 2 | D39: 3
A40: соль | C40: 1 | D40: 1
A42: Суп крестьянский на мкб со сметаной | B42: 98 | C42: 180/10/7 | D42: 200/12/8 | E42: 5.32 | F42: 6.95 | G42: 4.26 | H42: 5.75 | I42: 16.28 | J42: 17.14 | K42: 128.52 | L42: 148.11 | M42: 11.87 | N42: 12.02
A43: Мясо говядины на кости | C43: 22/16 | D43: 25/19
A44: Картофель | C44: 100/60 | D44: 111/67
A45: Морковь | C45: 11/9 | D45: 12/10
A46: Лук репчатый | C46: 17/14 | D46: 18/15
A47: крупа перловая | C47: 9 | D47: 10
A48: Масло растительное | C48: 2 | D48: 3
A49: Вода | C49: 135 | D49: 150
A50: Соль | C50: 1 | D50: 1
A51: Сметана 15% | C51: 7 | D51: 8
A53: Макароны отварные со сливочным маслом | B53: 335 | C53: 110 | D53: 130 | E53: 3.65 | F53: 3.68 | G53: 4.06 | H53: 4.43 | I53: 24.4 | J53: 28.38 | K53: 148.74 | L53: 156.67 | M53: 0 | N53: 0
A54: макаронные изделия | C54: 39 | D54: 45
A55: масло сливочное 72,5% | C55: 5 | D55: 7
A56: соль | C56: 0.4 | D56: 0.5
A58: Кнели куриные | B58: 329 | C58: 50 | D58: 70 | E58: 3.8 | F58: 5.07 | G58: 5.27 | H58: 7.62 | I58: 3.21 | J58: 4.5 | K58: 75.47 | L58: 106.86 | M58: 3.62 | N58: 4.53
A59: курица | C59: 67/48 | D59: 97/69
A60: крупа рисовая | C60: 4 | D60: 6
A61: вода | C61: 5 | D61: 7
A62: мука пшеничная в/с | C62: 2 | D62: 3
A63: лук репчатый | C63: 6/5 | D63: 9/7
A64: соль | C64: 0.3 | D64: 0.3
A65: яйцо куриное | C65: 1 | D65: 1
A66: масло растительное | C66: 1 | D66: 1
A68: Хлеб ржано -пшеничный | C68: 30 | D68: 50 | E68: 1.91 | F68: 3.19 | G68: 0.24 | H68: 0.4 | I68: 12.43 | J68: 20.71 | K68: 52.61 | L68: 99.2 | M68: 0 | N68: 0
A70: Компот из сухофруктов | B70: 394 | C70: 150 | D70: 180 | E70: 0.04 | F70: 0.05 | G70: 0 | H70: 0 | I70: 13.4 | J70: 16.08 | K70: 53.79 | L70: 64.55 | M70: 0.03 | N70: 0.04
A71: Смесь компотная | C71: 15 | D71: 18
A72: сахарный песок | C72: 8 | D72: 10
A73: вода | C73: 157 | D73: 188
A75: Итого: | E75: =E70+E68+E58+E53+E42+E35 -> 15.29 | F75: 19.8 | G75: 15.64 | H75: 20.94 | I75: 73.58 | J75: 92.04 | K75: 496.67 | L75: 624.57 | M75: 28.73 | N75: 30.49
A77: Полдник
A78: Кисломолочный продукт | B78: 420 | C78: 150 | D78: 180 | E78: 3.9 | F78: 4.68 | G78: 3.75 | H78: 4.5 | I78: 6 | J78: 7.2 | K78: 66.15 | L78: 79.38 | M78: 0 | N78: 0
A79: Фрукт | B79: 386 | C79: 85 | D79: 85 | E79: 0.55 | F79: 0.55 | G79: 0.92 | H79: 0.92 | I79: 5.18 | J79: 5.18 | K79: 31.2 | L79: 31.2 | M79: 0.1 | N79: 0.1
A80: Кондитерское изделие | C80: 25 | D80: 50 | E80: 1.6 | F80: 3.1 | G80: 2.1 | H80: 4.01 | I80: 18 | J80: 28.7 | K80: 97.3 | L80: 163.29 | M80: 0.13 | N80: 0.26
A81: Итого: | E81: 6.05 | F81: 8.33 | G81: 6.77 | H81: 9.43 | I81: 29.18 | J81: 41.08 | K81: 194.65 | L81: 273.87 | M81: 0.23 | N81: 0.36
A82: Итого за 1 день: | E82: =E81+E75+E32+E28 -> 30.91 | F82: =F81+F75+F32+F28 -> 40.37 | G82: =G81+G75+G32+G28 -> 32.17 | H82: 42.51 | I82: =I81+I75+I32+I28 -> 154.36 | J82: 195.91 | K82: 1045.47 | L82: 1333.88 | M82: 34.104 | N82: 37.29

Sheet Меню раскладка 3 день
B1: Меню-раскладка 3 день
A3: Наименование блюда | B3: номер рецептуры по сборнику | C3: масса порций, в гр. | E3: Пищевая ценность | K3: Энергетическая ценность | M3: Витамин С
E4: белки | G4: жиры | I4: углеводы
A5: Завтрак | C5: 1-3 года | D5: 3-7 лет | E5: 1-3 года | F5: 3-7 лет | G5: 1-3 года | H5: 3-7 лет | I5: 1-3 года | J5: 3-7 лет | K5: 1-3 года | L5: 3-7 лет | M5: 1-3 года | N5: 3-7 лет
A6: Каша манная молочная со сливочным маслом | B6: 199 | C6: 150/5/5 | D6: 180/7/7 | E6: 4.83 | F6: 5.8 | G6: 5 | H6: 6 | I6: 12.63 | J6: 15.2 | K6: 113 | L6: 135.6 | M6: 1.79 | N6: 2.14
A7: крупа манная | C7: 15 | D7: 18
A8: молоко 2,5% | C8: 125 | D8: 150
A9: сахарный песок | C9: 5 | D9: 7
A10: соль | C10: 1 | D10: 1
A11: масло сливочное 72,5% | C11: 5 | D11: 7
A12: Вода | C12: 18 | D12: 22
A14: Чай сладкий с молоком | B14: 413 | C14: 150 | D14: 200 | E14: 2.03 | F14: 2.71 | G14: 2.32 | H14: 3.1 | I14: 12.18 | J14: 16.24 | K14: 79.23 | L14: 105.65 | M14: 0.94 | N14: 1.26
A15: Чай заварка | C15: 0.4 | D15: 0.5
A16: Сахарный песок | C16: 8 | D16: 10
A17: вода | C17: 120 | D17: 160
A18: Молоко 2,5% | C18: 40 | D18: 54
A20: Бутерброд с повидлом | B20: 2 | C20: 50 | D20: 75 | E20: 1.92 | F20: 2.82 | G20: 2.5 | H20: 3.48 | I20: 17.8 | J20: 23.3 | K20: 101.38 | L20: 135.8 | M20: 0.07 | N20: 0.1
A21: батон | C21: 30 | D21: 50
A22: масло сливочное 72,5% | C22: 5 | D22: 5
A23: повидло | C23: 15 | D23: 20
A24: Итого: | E24: =E20+E14+E6 -> 8.78 | F24: =F20+F14+F6 -> 11.33 | G24: 9.82 | H24: 12.58 | I24: 42.61 | J24: 54.74 | K24: 293.61 | L24: 377.05 | M24: 2.8 | N24: 3.5
A26: 2-ой завтрак
A27: Сок | B27: 418 | C27: 150 | D27: 180 | E27: 0.75 | F27: 0.9 | G27: 0 | H27: 0 | I27: 8.99 | J27: 10.8 | K27: 61.56 | L27: 73.87 | M27: 3.24 | N27: 3.9
A28: Итого: | E28: =E27 -> 0.75 | F28: 0.9 | G28: 0 | H28: 0 | I28: 8.99 | J28: 10.8 | K28: 61.56 | L28: 73.87 | M28: 3.24 | N28: 3.9
A30: Обед
A31: Салат из моркови с изюмом | B31: 42 | C31: 40 | D31: 60 | E31: 0.5 | F31: 0.75 | G31: 4.03 | H31: 6.04 | I31: 4.8 | J31: 7.2 | K31: 57.59 | L31: 86.38 | M31: 1.95 | N31: 2.92
A32: Морковь свежая | C32: 43/32 | D32: 65/48
A33: Изюм | C33: 5/4 | D33: 7/6
A34: масло растительное | C34: 4 | D34: 6
A35: соль | C35: 1 | D35: 1
A36: сахарный песок | C36: 1 | D36: 2
A38: Суп картофельный с макаронными изделиями с курицей со сметаной | B38: 88 | C38: 180/10/7 | D38: 200/12/8 | E38: 4.59 | F38: 4.9 | G38: 5.09 | H38: 6.45 | I38: 16.02 | J38: 17.8 | K38: 128.25 | L38: 148.85 | M38: 12.96 | N38: 13.4
A39: курица | C39: 22/15 | D39: 25/17
A40: картофель | C40: 100/60 | D40: 111/67
A41: лук репчатый | C41: 4/3 | D41: 5/4
A42: морковь | C42: 9/7 | D42: 10/8
A43: масло растительное | C43: 2 | D43: 3
A44: вода | C44: 126 | D44: 140
A45: соль пищевая | C45: 0.5 | D45: 0.5
A46: вермишель | C46: 9 | D46: 14
A47: сметана | C47: 7 | D47: 8
A49: Жаркое по-домашнему из говядины | B49: 290 | C49: 150 | D49: 180 | E49: 8.21 | F49: 9.84 | G49: 7.83 | H49: 9.05 | I49: 18.84 | J49: 27.35 | K49: 178.67 | L49: 230.21 | M49: 13.9 | N49: 18.4
A50: мясо говядины на кости | C50: 76/56 | D50: 84/62
A51: картофель | C51: 114/68 | D51: 137/82
A52: лук репчатый | C52: 9/8 | D52: 12/10
A53: морковь | C53: 20/16 | D53: 22/18
A54: масло сливочное 72,5% | C54: 4 | D54: 5
A55: томатная паста | C55: 3 | D55: 4
A56: вода | C56: 71 | D56: 85
A57: соль | C57: 0.5 | D57: 0.6
A59: Хлеб ржано -пшеничный | C59: 30 | D59: 50 | E59: 1.91 | F59: 3.19 | G59: 0.24 | H59: 0.4 | I59: 12.43 | J59: 20.71 | K59: 52.61 | L59: 99.2 | M59: 0 | N59: 0
A61: Компот из яблок и изюма | B61: 390 | C61: 150 | D61: 180 | E61: 0.21 | F61: 0.25 | G61: 0.06 | H61: 0.07 | I61: 18.92 | J61: 22.7 | K61: 64.62 | L61: 77.5 | M61: 2.21 | N61: 2.65
A62: Яблоки | C62: 17/14 | D62: 21/17
A63: Изюм | C63: 8 | D63: 10
A64: Сахарный песок | C64: 8 | D64: 10
A65: Вода | C65: 152 | D65: 182
A66: Итого: | E66: 15.42 | F66: 18.93 | G66: 17.25 | H66: 22.01 | I66: 71.01 | J66: 95.76 | K66: 481.74 | L66: 642.14 | M66: 31.02 | N66: 37.37
A68: Полдник
A69: Булочка домашняя | B69: 452 | C69: 50 | D69: 60 | E69: 2.39 | F69: 2.87 | G69: 4.01 | H69: 4.81 | I69: 26.11 | J69: 31.33 | K69: 150.09 | L69: 180.11 | M69: 0.25 | N69: 0.25
A70: Для теста: | B70: 436 | C70: 60 | D70: 70
A71: мука | C71: 34 | D71: 40
A72: молоко 2,5% | C72: 10 | D72: 12
A73: вода | C73: 6 | D73: 7
A74: масло растительное | C74: 5 | D74: 6
A75: соль | C75: 1 | D75: 1
A76: дрожжи сухие | C76: 1 | D76: 1
A77: сахарный песок | C77: 5 | D77: 6
A78: яйцо куриное | C78: 2 | D78: 2
A80: мука в/с | C80: 2 | D80: 2
A81: масло растительное | C81: 1 | D81: 1
A83: Кисломолочный продукт | B83: 420 | C83: 150 | D83: 200 | E83: 3.9 | F83: 5.2 | G83: 3.37 | H83: 4.5 | I83: 5.67 | J83: 7.56 | K83: 65.9 | L83: 87.86 | M83: 0.4 | N83: 0.54
A85: Итого: | E85: =E83+E69 -> 6.29 | F85: 8.07 | G85: 7.38 | H85: 9.31 | I85: 31.78 | J85: 38.89 | K85: 215.99 | L85: 267.97 | M85: 0.65 | N85: 0.79
A87: Итого за 1 день: | E87: 31.24 | F87: 39.23 | G87: 34.45 | H87: 43.9 | I87: 154.39 | J87: 200.19 | K87: 1052.9 | L87: =L85+L66+L28+L24 -> 1361.03 | M87: =M85+M66+M28+M24 -> 37.71 | N87: =N85+N66+N28+N24 -> 45.56

Sheet Меню раскладка 4 день
B1: Меню - раскладка 4 день
A3: Наименование блюда | B3: номер рецептуры по сборнику | C3: масса порций, в гр. | E3: Пищевая ценность | K3: Энергетическая ценность | M3: Витамин С
E4: белки | G4: жиры | I4: углеводы
A5: Завтрак | C5: 1-3 года | D5: 3-7 лет | E5: 1-3 года | F5: 3-7 лет | G5: 1-3 года | H5: 3-7 лет | I5: 1-3 года | J5: 3-7 лет | K5: 1-3 года | L5: 3-7 лет | M5: 1-3 года | N5: 3-7 лет
A6: Суп молочный вермишелевый | B6: 100 | C6: 150 | D6: 180 | E6: 4.7 | F6: 5.73 | G6: 5.88 | H6: 7.3 | I6: 16.2 | J6: 19.5 | K6: 136.52 | L6: 166.62 | M6: 1.22 | N6: 1.46
A7: молоко 2,5% | C7: 125 | D7: 150
A8: макаронные изделия (вермишель) | C8: 16 | D8: 19
A9: вода | C9: 25 | D9: 30
A10: сахарный песок | C10: 2 | D10: 3
A11: соль | C11: 1 | D11: 1
A12: масло сливочное 72,5% | C12: 2 | D12: 3
A14: Какао с молоком | B14: 416 | C14: 150 | D14: 200 | E14: 3.06 | F14: 4.08 | G14: 2.96 | H14: 3.94 | I14: 12.47 | J14: 16.6 | K14: 87.6 | L14: 116.8 | M14: 1.07 | N14: 1.42
A15: какао | C15: 2 | D15: 2
A16: сахарный песок | C16: 9 | D16: 12
A17: молоко 2,5% | C17: 92 | D17: 122
A18: вода | C18: 65 | D18: 87
A20: Бутерброд с сыром | B20: 1 | C20: 40/10 | D20: 50/10 | E20: 0.34 | F20: 0.45 | G20: 0.19 | H20: 0.24 | I20: 13.22 | J20: 16.53 | K20: 55.95 | L20: 70 | M20: 0 | N20: 0
A21: батон | C21: 40 | D21: 50
A22: сыр | C22: 10 | D22: 10
A23: Итого: | E23: =E20+E14+E6 -> 8.1 | F23: =F20+F14+F6 -> 10.26 | G23: 9.03 | H23: 11.48 | I23: 41.89 | J23: 52.63 | K23: 280.07 | L23: 353.42 | M23: 2.29 | N23: 2.88
A25: 2-ой завтрак
A26: Кисломолочный продукт | B26: 420 | C26: 150 | D26: 180 | E26: 4.05 | F26: 4.86 | G26: 3.75 | H26: 4.5 | I26: 16.2 | J26: 19.44 | K26: 114.7 | L26: 137.6 | M26: 0 | N26: 0
A27: Итого: | E27: 4.05 | F27: 4.86 | G27: 3.75 | H27: 4.5 | I27: 16.2 | J27: 19.44 | K27: 114.7 | L27: 137.6 | M27: 0 | N27: 0
A29: Обед
A30: Салат из отварной свеклы | B30: 34 | C30: 40 | D30: 60 | E30: 0.57 | F30: 0.87 | G30: 2.43 | H30: 4.05 | I30: 3.49 | J30: 5.27 | K30: 38.2 | L30: 61.07 | M30: 3.8 | N30: 5.8
A31: Свекла | C31: 49/39 | D31: 73/58
A32: масло растительное | C32: 4 | D32: 6
A34: Суп картофельный с крупой (пшенный) на мкб со сметаной | B34: 86 | C34: 180/10/7 | D34: 200/12/8 | E34: 4.03 | F34: 5.1 | G34: 4.9 | H34: 6.05 | I34: 19.8 | J34: 22 | K34: 139.42 | L34: 162.85 | M34: 7.87 | N34: 8.82
A35: мясо говядины на кости | C35: 22/16 | D35: 25/19
A36: картофель | C36: 76/46 | D36: 82/50
A37: лук репчатый | C37: 4/3 | D37: 5/4
A38: морковь свежая | C38: 9/7 | D38: 10/8
A39: крупа пшенная | C39: 10 | D39: 12
A40: масло растительное | C40: 2 | D40: 3
A41: вода | C41: 180 | D41: 200
A42: соль | C42: 1 | D42: 1
A43: сметана | C43: 7 | D43: 8
A45: Запеканка рыбная с рисом | C45: 130 | D45: 150 | E45: 7.53 | F45: 8.8 | G45: 8.23 | H45: 9.5 | I45: 24.3 | J45: 28.04 | K45: 201.39 | L45: 232.86 | M45: 13.5 | N45: 15.58
A46: минтай с/мороженный | C46: 104/89 | D46: 121/103
A47: крупа рисовая | C47: 16 | D47: 18
A48: лук репчатый | C48: 17/14 | D48: 20/16
A49: яйцо | C49: 3 | D49: 4
A50: мука | C50: 4 | D50: 5
A51: молоко | C51: 10 | D51: 12
A52: масло сливочное | C52: 5 | D52: 6
A53: соль | C53: 1 | D53: 1
A55: Хлеб ржано -пшеничный | C55: 30 | D55: 50 | E55: 1.91 | F55: 3.19 | G55: 0.24 | H55: 0.4 | I55: 11.9 | J55: 20.71 | K55: 52.61 | L55: 99.2 | M55: 0 | N55: 0
A57: Чай с сахаром и лимоном | B57: 412 | C57: 150/8/3 | D57: 200/10/4 | E57: 0.11 | F57: 0.15 | G57: 0.03 | H57: 0.04 | I57: 9.1 | J57: 12.13 | K57: 41.37 | L57: 55.16 | M57: 0.075 | N57: 0.1
A58: чай заварка (сухая) | C58: 0.5 | D58: 0.7
A59: сахарный песок | C59: 8 | D59: 10
A60: вода | C60: 157 | D60: 210
A61: лимон | C61: 4/3 | D61: 5/4
A62: Итого: | E62: =E57+E55+E45+E34+E30 -> 14.15 | F62: 18.11 | G62: 15.83 | H62: 20.04 | I62: 68.59 | J62: 88.15 | K62: 472.99 | L62: 611.14 | M62: 25.245 | N62: 30.3
A64: Полдник
A65: Оладьи со сгущенным молоком | B65: 432 | C65: 80/10 | D65: 120/10 | E65: 5.4 | F65: 7.45 | G65: 6.8 | H65: 8.8 | I65: 25.1 | J65: 34.55 | K65: 183.2 | L65: 247.2 | M65: 0.44 | N65: 0.66
A66: Тесто: | C66: 95 | D66: 141
A67: мука пшеничная в/с | C67: 45 | D67: 68
A68: яйцо куриное | C68: 3 | D68: 4
A69: молоко 2,5% | C69: 39 | D69: 58
A70: дрожжи сухие | C70: 1 | D70: 1
A71: сахарный песок | C71: 1 | D71: 1
A72: соль | C72: 1 | D72: 1
A73: сгущенное молоко | C73: 10 | D73: 10
A74: масло растительное | C74: 4 | D74: 6
A76: Чай без сахара | B76: 411 | C76: 150 | D76: 200 | E76: 0.01 | F76: 0.01 | G76: 0 | H76: 0 | I76: 0.02 | J76: 0.03 | K76: 0.06 | L76: 0.09 | M76: 0.04 | N76: 0.05
A77: Чай заварка (сухая) | C77: 0.5 | D77: 0.7
A78: вода | C78: 157 | D78: 210
A80: Фрукт | C80: 85 | D80: 85 | E80: 0.72 | F80: 0.72 | G80: 0.2 | H80: 0.2 | I80: 6.48 | J80: 6.48 | K80: 34.4 | L80: 34.4 | M80: 4.8 | N80: 4.8
A81: Итого: | E81: 6.13 | F81: 8.18 | G81: 7 | H81: 9 | I81: 31.6 | J81: 41.06 | K81: 217.66 | L81: 281.69 | M81: 5.28 | N81: 5.51
A82: Итого на 1 день: | E82: =E81+E62+E27+E23 -> 32.43 | F82: =F81+F62+F27+F23 -> 41.41 | G82: =G81+G62+G27+G23 -> 35.61 | H82: =H81+H62+H27+H23 -> 45.02 | I82: 158.28 | J82: 201.28 | K82: 1085.42 | L82: =L81+L62+L27+L23 -> 1383.85 | M82: =M81+M62+M27+M23 -> 32.815 | N82: =N81+N62+N27+N23 -> 38.69

Sheet Меню раскладка 5 день
B1: Меню раскладка 5 день:
A3: Наименование блюда | B3: номер рецептуры по сборнику | C3: масса порций, в гр. | E3: Пищевая ценность | K3: Энергетическая ценность | M3: Витамин С
E4: белки | G4: жиры | I4: углеводы
A5: Завтрак | C5: 1-3 года | D5: 3-7 лет | E5: 1-3 года | F5: 3-7 лет | G5: 1-3 года | H5: 3-7 лет | I5: 1-3 года | J5: 3-7 лет | K5: 1-3 года | L5: 3-7 лет | M5: 1-3 года | N5: 3-7 лет
A6: Омлет натуральный со сливочным маслом | B6: 229 | C6: 130 | D6: 150 | E6: 4.6 | F6: 5.31 | G6: 5.3 | H6: 6.1 | I6: 15.1 | J6: 17 | K6: 126.5 | L6: 144.14 | M6: 0.88 | N6: 1.1
A7: яйцо куриное | C7: 68 | D7: 80
A8: молоко 2,5% | C8: 71 | D8: 85
A9: масло сливочное 72,5% | C9: 6 | D9: 8
A10: соль | C10: 1 | D10: 1
A12: Кофейный напиток с молоком | B12: 414 | C12: 180 | D12: 200 | E12: 2.52 | F12: 2.8 | G12: 2.59 | H12: 2.87 | I12: 13.68 | J12: 15.2 | K12: 87.14 | L12: 96.82 | M12: 1.17 | N12: 1.75
A13: кофейный напиток | C13: 2 | D13: 3
A14: сахарный песок | C14: 9 | D14: 10
A15: молоко 2,5% | C15: 90 | D15: 100
A16: вода | C16: 108 | D16: 120
A18: Бутерброд с маслом | B18: 1 | C18: 30/10 | D18: 50/10 | E18: 1.7 | F18: 2.83 | G18: 1.95 | H18: 3.25 | I18: 13.56 | J18: 22.6 | K18: 64.84 | L18: 108 | M18: 0.02 | N18: 0.04
A19: батон | C19: 30 | D19: 50
A20: масло сливочное | C20: 10 | D20: 10
A21: Итого: | E21: =E18+E12+E6 -> 8.82 | F21: 10.94 | G21: 9.84 | H21: 12.22 | I21: 42.34 | J21: 54.8 | K21: 278.48 | L21: 348.96 | M21: 2.07 | N21: 2.89
A23: 2-ой завтрак
A24: Кисломолочный продукт | B24: 420 | C24: 150 | D24: 180 | E24: 2.8 | F24: 3.36 | G24: 3.75 | H24: 4.5 | I24: 6 | J24: 7.2 | K24: 68.95 | L24: 82.7 | M24: 0 | N24: 0
A25: Итого: | E25: 2.8 | F25: 3.36 | G25: 3.75 | H25: 4.5 | I25: 6 | J25: 7.2 | K25: 68.95 | L25: 82.7 | M25: 0 | N25: 0
A27: Обед
A28: Салат" Витаминный" | B28: 21 | C28: 40 | D28: 60 | E28: 0.57 | F28: 0.86 | G28: 1.81 | H28: 2.74 | I28: 3.86 | J28: 5.23 | K28: 37.54 | L28: 49.18 | M28: 13.21 | N28: 15.28
A29: Капуста свежая | C29: 22/18 | D29: 35/28
A30: Морковь | C30: 8/6 | D30: 10/8
A31: Яблоки свежие | C31: 12/10 | D31: 18/15
A32: Сахарный песок | C32: 2 | D32: 3
A33: Масло растительное | C33: 4 | D33: 6
A34: соль | C34: 1 | D34: 1
A36: Суп картофельный с бобовыми (гороховый) на мкб | B36: 87 | C36: 180/10 | D36: 200/12 | E36: 5.48 | F36: 6.11 | G36: 4.87 | H36: 5.41 | I36: 11.87 | J36: 13.2 | K36: 117.31 | L36: 125.93 | M36: 6.8 | N36: 9.1
A37: мясо говядины на кости | C37: 22/16 | D37: 25/19
A38: горох | C38: 14 | D38: 15
A39: картофель | C39: 100/60 | D39: 111/67
A40: лук репчатый | C40: 8/6 | D40: 9/7
A41: морковь | C41: 9/7 | D41: 10/8
A42: масло растительное | C42: 2 | D42: 3
A43: вода | C43: 130 | D43: 145
A44: соль | C44: 1 | D44: 1
A46: Каша гречневая со сливочным маслом | B46: 330 | C46: 110 | D46: 130 | E46: 4.45 | F46: 5.85 | G46: 4.78 | H46: 6.55 | I46: 25.8 | J46: 33.54 | K46: 148 | L46: 197.37 | M46: 0 | N46: 0
A47: Гречневая крупа | C47: 39 | D47: 46
A48: Соль | C48: 0.3 | D48: 0.3
A49: масло сливочное 72,5% | C49: 5 | D49: 7
A51: Гуляш из куриных грудок | B51: ТТК 99 | C51: 35/25 | D51: 40/40 | E51: 2.9 | F51: 3.45 | G51: 4.99 | H51: 6.8 | I51: 6.22 | J51: 7.11 | K51: 81.39 | L51: 103.44 | M51: 4.3 | N51: 5.4
A52: грудка куриная | C52: 71/51 | D52: 78/56
A53: морковь | C53: 10/8 | D53: 16/14
A54: лук репчатый | C54: 5/4 | D54: 12/10
A55: масло сливочное 72,5% | C55: 2 | D55: 4
A56: томатная паста | C56: 2 | D56: 3
A57: мука в/с | C57: 2 | D57: 3
A58: соль | C58: 0.3 | D58: 0.4
A59: вода | C59: 17 | D59: 26
A61: Хлеб ржано -пшеничный | C61: 30 | D61: 50 | E61: 1.91 | F61: 3.19 | G61: 0.24 | H61: 0.4 | I61: 12.43 | J61: 20.71 | K61: 52.61 | L61: 99.2 | M61: 0 | N61: 0
A63: Компот из сухофруктов | B63: 394 | C63: 150 | D63: 180 | E63: 0.04 | F63: 0.05 | G63: 0 | H63: 0 | I63: 13.4 | J63: 16 | K63: 53.79 | L63: 64.55 | M63: 0.03 | N63: 0.04
A64: Смесь компотная | C64: 15 | D64: 18
A65: сахарный песок | C65: 8 | D65: 10
A66: вода | C66: 157 | D66: 188
A67: Итого: | E67: =E63+E61+E51+E46+E36+E28 -> 15.35 | F67: =F63+F61+F51+F46+F36+F28 -> 19.51 | G67: 16.69 | H67: 21.9 | I67: 73.58 | J67: 95.79 | K67: 490.64 | L67: 639.67 | M67: 24.34 | N67: 29.82
A69: Полдник
A70: Булочка "К чаю" | B70: 472 | C70: 50 | D70: 60 | E70: 4.5 | F70: 6.2 | G70: 6.52 | H70: 8.42 | I70: 17.01 | J70: 20.4 | K70: 144.72 | L70: 182.2 | M70: 0.15 | N70: 0.15
A71: Для теста: | C71: 60 | D71: 70
A72: мука | C72: 34 | D72: 40
A73: молоко 2,5% | C73: 10 | D73: 12
A74: вода | C74: 6 | D74: 7
A75: масло растительное | C75: 5 | D75: 6
A76: соль | C76: 1 | D76: 1
A77: дрожжи сухие | C77: 1 | D77: 1
A78: сахарный песок | C78: 5 | D78: 6
A79: яйцо куриное | C79: 2 | D79: 2
A81: мука в/с | C81: 2 | D81: 2
A82: масло растительное | C82: 1 | D82: 1
A84: Фрукт | B84: 386 | C84: 85 | D84: 85 | E84: 1.44 | F84: 1.44 | G84: 0.17 | H84: 0.17 | I84: 6.88 | J84: 6.88 | K84: 32.13 | L84: 32.13 | M84: 6.1 | N84: 6.1
A86: Чай с сахаром | B86: 411 | C86: 150/8 | D86: 200/10 | E86: 0.11 | F86: 0.15 | G86: 0.03 | H86: 0.04 | I86: 7.9 | J86: 12.13 | K86: 31.9 | L86: 55.16 | M86: 0.075 | N86: 0.1
A87: Чай заварка (сухая) | C87: 0.5 | D87: 0.7
A88: Сахарный песок | C88: 8 | D88: 10
A89: вода | C89: 157 | D89: 210
A90: Итого: | E90: 6.05 | F90: 7.79 | G90: 6.72 | H90: 8.63 | I90: 31.79 | J90: 39.41 | K90: 208.75 | L90: 269.49 | M90: 6.325 | N90: 6.35
A91: Итого за 1 день: | E91: =E90+E67+E25+E21 -> 33.02 | F91: 41.6 | G91: 37 | H91: 47.25 | I91: 153.71 | J91: 197.2 | K91: 1046.82 | L91: 1340.82 | M91: 32.735 | N91: 39.06

Sheet Меню раскладка 6 день
B1: Меню раскладка 6 день
A3: Наименование блюда | B3: номер рецептуры по сборнику | C3: масса порций, в гр. | E3: Пищевая ценность | K3: Энергетическая ценность | M3: Витамин С
E4: белки | G4: жиры | I4: углеводы
A5: Завтрак | C5: 1-3 года | D5: 3-7 лет | E5: 1-3 года | F5: 3-7 лет | G5: 1-3 года | H5: 3-7 лет | I5: 1-3 года | J5: 3-7 лет | K5: 1-3 года | L5: 3-7 лет | M5: 1-3 года | N5: 3-7 лет
A6: Каша молочная геркулесовая со сливочным маслом | B6: 199 | C6: 150/5/5 | D6: 180/7/7 | E6: 4.85 | F6: 5.8 | G6: 5 | H6: 6 | I6: 12.62 | J6: 15.2 | K6: 113 | L6: 136 | M6: 1.52 | N6: 1.75
A7: Овсяные хлопья "геркулес" | C7: 19 | D7: 22
A8: молоко 2,5% | C8: 125 | D8: 150
A9: вода | C9: 18 | D9: 22
A10: сахарный песок | C10: 5 | D10: 7
A11: соль | C11: 1 | D11: 1
A12: масло сливочное 72,5% | C12: 5 | D12: 7
A14: Чай сладкий с молоком | B14: 413 | C14: 150 | D14: 200 | E14: 2.03 | F14: 2.71 | G14: 2.32 | H14: 3.1 | I14: 12.18 | J14: 16.24 | K14: 79.23 | L14: 105.65 | M14: 0.94 | N14: 1.26
A15: Чай заварка | C15: 0.4 | D15: 0.5
A16: Сахарный песок | C16: 8 | D16: 10
A17: вода | C17: 120 | D17: 160
A18: Молоко 2,5% | C18: 40 | D18: 54
A20: Бутерброд с повидлом | B20: 2 | C20: 50 | D20: 75 | E20: 1.92 | F20: 2.28 | G20: 2.5 | H20: 3.48 | I20: 17.8 | J20: 23.3 | K20: 101.38 | L20: 135.8 | M20: 0.07 | N20: 0.1
A21: батон | C21: 30 | D21: 50
A22: масло сливочное 72,5% | C22: 5 | D22: 5
A23: повидло | C23: 15 | D23: 20
A24: Итого: | E24: =E20+E14+E6 -> 8.8 | F24: 11.33 | G24: =G20+G14+G6 -> 9.82 | H24: 12.58 | I24: 42.6 | J24: 54.74 | K24: 293.61 | L24: 377.45 | M24: 2.53 | N24: 3.11
A26: 2-ой завтрак
A27: Сок | B27: 418 | C27: 150 | D27: 180 | E27: 0.75 | F27: 0.9 | G27: 0 | H27: 0 | I27: 8.99 | J27: 10.8 | K27: 61.56 | L27: 73.87 | M27: 3.24 | N27: 3.89
A28: Итого: | E28: 0.75 | F28: 0.9 | G28: 0 | H28: 0 | I28: 8.99 | J28: 10.8 | K28: 61.56 | L28: 73.87 | M28: 3.24 | N28: 3.89
A30: Обед
A31: Салат из моркови | B31: 42 | C31: 40 | D31: 60 | E31: 0.49 | F31: 0.73 | G31: 4.06 | H31: 7.48 | I31: 4.49 | J31: 6.73 | K31: 52.48 | L31: 97.16 | M31: 2.8 | N31: 3.12
A32: Морковь свежая | C32: 48/38 | D32: 73/54
A33: масло растительное | C33: 4 | D33: 6
A34: соль | C34: 1 | D34: 1
A35: сахарный песок | C35: 1 | D35: 3
A37: Борщ с капустой и картофелем со сметаной на мкб | B37: 63 | C37: 180/10/7 | D37: 200/12/8 | E37: 4.69 | F37: 5.23 | G37: 4.51 | H37: 5.03 | I37: 7.17 | J37: 10.58 | K37: 117.34 | L37: 136.82 | M37: 11.22 | N37: 14.3
A38: говядина на кости | C38: 22/16 | D38: 25/19
A39: свекла | C39: 40/29 | D39: 44/32
A40: капуста белокочанная | C40: 34/28 | D40: 36/30
A41: картофель | C41: 53/32 | D41: 61/37
A42: морковь свежая | C42: 12/9 | D42: 14/11
A43: лук репчатый | C43: 8/7 | D43: 9/8
A44: томатная паста | C44: 6 | D44: 7
A45: сахарный песок | C45: 2 | D45: 2
A46: соль | C46: 1 | D46: 1
A47: масло растительное | C47: 2 | D47: 3
A48: вода | C48: 144 | D48: 160
A49: сметана 15% | C49: 7 | D49: 8
A51: Рыба, запеченная в омлете | B51: 263 | C51: 130 | D51: 150 | E51: 7.56 | F51: 8.72 | G51: 7.52 | H51: 8.6 | I51: 25.1 | J51: 29.9 | K51: 198.32 | L51: 231.88 | M51: 1.65 | N51: 2.06
A52: минтай св\мор | C52: 104/89 | D52: 121/103
A53: мука в/с | C53: 4 | D53: 5
A54: яйцо куриное | C54: 32 | D54: 38
A55: молоко 2,5% | C55: 13 | D55: 15
A56: масло сливочное 72,5% | C56: 4 | D56: 5
A57: соль | C57: 1 | D57: 1
A59: Хлеб ржано -пшеничный | C59: 30 | D59: 50 | E59: 1.91 | F59: 3.57 | G59: 0.24 | H59: 0.4 | I59: 12.43 | J59: 20.71 | K59: 52.61 | L59: 99.2 | M59: 0 | N59: 0
A61: Компот из яблок и изюма | B61: 390 | C61: 150 | D61: 180 | E61: 0.21 | F61: 0.25 | G61: 0.06 | H61: 0.07 | I61: 18.92 | J61: 22.7 | K61: 64.62 | L61: 77.54 | M61: 2.21 | N61: 2.65
A62: Яблоки | C62: 17/14 | D62: 21/17
A63: Изюм | C63: 8 | D63: 10
A64: Сахарный песок | C64: 8 | D64: 10
A65: Вода | C65: 152 | D65: 182
A66: Итого: | E66: =E61+E59+E51+E37+E31 -> 14.86 | F66: 18.5 | G66: 16.39 | H66: 21.58 | I66: 68.11 | J66: 90.62 | K66: 485.37 | L66: 642.6 | M66: 17.88 | N66: 19.23
A68: Полдник
A69: Слойка с сахаром | B69: 441 | C69: 60 | D69: 65 | E69: 4.86 | F69: 6.6 | G69: 7.3 | H69: 8.6 | I69: 26.5 | J69: 35.7 | K69: 191.14 | L69: 246.6 | M69: 0.15 | N69: 0.15
A70: Для теста: | B70: 436 | C70: 60 | D70: 65
A71: мука в/с | C71: 39 | D71: 42
A72: молоко 2,5% | C72: 13 | D72: 14
A73: вода | C73: 6 | D73: 7
A74: масло растительное | C74: 4 | D74: 4
A75: соль | C75: 1 | D75: 1
A76: дрожжи сухие | C76: 1 | D76: 1
A77: сахарный песок | C77: 1 | D77: 1
A78: яйцо куриное | C78: 2 | D78: 2
A80: сахарный песок | C80: 5 | D80: 5
A81: Масло растительное | C81: 2 | D81: 2
A83: мука в/с | C83: 2 | D83: 2
A84: масло растительное | C84: 1 | D84: 1
A86: Фрукт | B86: 386 | C86: 85 | D86: 85 | E86: 1.2 | F86: 1.2 | G86: 0.1 | H86: 0.1 | I86: 5.18 | J86: 5.18 | K86: 21.77 | L86: 21.77 | M86: 11 | N86: 11
A88: Чай без сахара | B88: 411 | C88: 150 | D88: 200 | E88: 0.01 | F88: 0.01 | G88: 0 | H88: 0 | I88: 0.02 | J88: 0.03 | K88: 0.06 | L88: 0.09 | M88: 0.04 | N88: 0.05
A89: чай - заварка | C89: 0.5 | D89: 0.7
A90: Итого: | E90: 6.07 | F90: 7.81 | G90: 7.4 | H90: 8.7 | I90: 31.7 | J90: 40.91 | K90: 212.97 | L90: 268.46 | M90: 11.19 | N90: 11.2
A92: Итого за 1 день: | E92: =E90+E66+E28+E24 -> 30.48 | F92: 38.54 | G92: 33.61 | H92: 42.86 | I92: 151.4 | J92: 197.07 | K92: 1053.51 | L92: 1362.38 | M92: 34.84 | N92: 37.43

Sheet Меню раскладка 7 день
B1: Меню-раскладка 7 день
A3: Наименование блюда | B3: номер рецептуры по сборнику | C3: масса порций, в гр. | E3: Пищевая ценность | K3: Энергетическая ценность | M3: Витамин С
E4: белки | G4: жиры | I4: углеводы
A5: Завтрак | C5: 1-3 года | D5: 3-7 лет | E5: 1-3 года | F5: 3-7 лет | G5: 1-3 года | H5: 3-7 лет | I5: 1-3 года | J5: 3-7 лет | K5: 1-3 года | L5: 3-7 лет | M5: 1-3 года | N5: 3-7 лет
A6: Пудинг из творога | B6: 249 | C6: 110/20 | D6: 130/20 | E6: 4.01 | F6: 4.74 | G6: 4.97 | H6: 6.08 | I6: 16.58 | J6: 18.29 | K6: 127.09 | L6: 146.84 | M6: 0.72 | N6: 0.77
A7: творог 5% | C7: 84 | D7: 99
A8: манная крупа | C8: 9 | D8: 11
A9: сметана 15% | C9: 6 | D9: 7
A10: яйцо куриное | C10: 6 | D10: 7
A11: сахарный песок | C11: 9 | D11: 11
A12: масло сливочное 72,5% | C12: 5 | D12: 6
A13: изюм | C13: 8 | D13: 9
A14: сухари | C14: 4 | D14: 5
A15: молоко сгущенное | C15: 20 | D15: 20
A17: Какао с молоком | B17: 416 | C17: 180 | D17: 190 | E17: 3.06 | F17: 3.7 | G17: 2.96 | H17: 3.24 | I17: 12.47 | J17: 13.9 | K17: 87.6 | L17: 116.8 | M17: 1.07 | N17: 1.42
A18: какао | C18: 3 | D18: 3
A19: сахарный песок | C19: 10 | D19: 11
A20: молоко 2,5% | C20: 110 | D20: 116
A21: вода | C21: 78 | D21: 83
A23: Батон | C23: 40 | D23: 55 | E23: 0.9 | F23: 1.98 | G23: 0.24 | H23: 0.42 | I23: 10.42 | J23: 17.4 | K23: 46.44 | L23: 81.3 | M23: 0 | N23: 0
A24: батон | C24: 40 | D24: 55
A26: масло сливочное 72,5% | C26: 5 | D26: 5 | E26: 0.04 | F26: 0.04 | G26: 1.7 | H26: 1.7 | I26: 0.06 | J26: 0.06 | K26: 32.8 | L26: 32.8 | M26: 0 | N26: 0
A27: масло сливочное 72,5% | C27: 5 | D27: 5
A28: Итого: | E28: 8.01 | F28: 10.46 | G28: 9.87 | H28: 11.44 | I28: 39.53 | J28: 49.65 | K28: 293.93 | L28: 377.74 | M28: 1.79 | N28: 2.19
A30: 2-ой завтрак
A31: Кисломолочный продукт | B31: 420 | C31: 150 | D31: 180 | E31: 4.05 | F31: 4.86 | G31: 3.75 | H31: 4.5 | I31: 15.44 | J31: 18.53 | K31: 112 | L31: 134.4 | M31: 0 | N31: 0
A32: Итого: | E32: 4.05 | F32: 4.86 | G32: 3.75 | H32: 4.5 | I32: 15.44 | J32: 18.53 | K32: 112 | L32: 134.4 | M32: 0 | N32: 0
A33: Обед
A34: Салат" Витаминный" | B34: 21 | C34: 40 | D34: 60 | E34: 0.57 | F34: 0.86 | G34: 1.81 | H34: 2.74 | I34: 3.86 | J34: 5.23 | K34: 37.54 | L34: 49.18 | M34: 13.21 | N34: 14.28
A35: Капуста свежая | C35: 22/18 | D35: 35/28
A36: Морковь | C36: 8/6 | D36: 10/8
A37: Яблоки свежие | C37: 12/10 | D37: 18/15
A38: Сахарный песок | C38: 2 | D38: 3
A39: Масло растительное | C39: 4 | D39: 6
A40: соль | C40: 1 | D40: 1
A42: Суп картофельный с крупой ( гречневый ) на мкб со сметаной | B42: 86 | C42: 180/10/7 | D42: 200/12/8 | E42: 4.58 | F42: 6.18 | G42: 5.78 | H42: 6.8 | I42: 18.84 | J42: 23.1 | K42: 133.91 | L42: 178.32 | M42: 7.87 | N42: 8.82
A43: Мясо говядины на кости | C43: 22/16 | D43: 25/19
A44: картофель | C44: 76/46 | D44: 82/50
A45: лук репчатый | C45: 4/3 | D45: 5/4
A46: морковь свежая | C46: 9/7 | D46: 10/8
A47: крупа гречневая | C47: 10 | D47: 12
A48: масло растительное | C48: 2 | D48: 3
A49: вода | C49: 180 | D49: 200
A50: соль | C50: 1 | D50: 1
A51: сметана 15% | C51: 7 | D51: 8
A53: Рагу овощное | B53: 362 | C53: 120 | D53: 150 | E53: 2.6 | F53: 2.49 | G53: 4.8 | H53: 5.8 | I53: 14.99 | J53: 18.74 | K53: 113.56 | L53: 137.12 | M53: 7.6 | N53: 8.36
A54: картофель | C54: 80/48 | D54: 100/60
A55: капуста белокочанная | C55: 52/42 | D55: 64/52
A56: морковь | C56: 21/17 | D56: 32/22
A57: лук репчатый | C57: 13/11 | D57: 18/14
A58: масло сливочное 72,5% | C58: 5 | D58: 7
A59: томатная паста | C59: 5 | D59: 7
A60: соль | C60: 0.5 | D60: 0.6
A61: мука в/с | C61: 4 | D61: 5
A62: вода | C62: 31 | D62: 39
A64: Котлета куриная | B64: 299 | C64: 50 | D64: 70 | E64: 4.36 | F64: 5.7 | G64: 3.58 | H64: 5.56 | I64: 7.08 | J64: 8.15 | K64: 77.98 | L64: 105.44 | M64: 0.5 | N64: 0.62
A65: курица бройлер | C65: 62/37 | D65: 86/46
A66: хлеб пшеничный | C66: 9 | D66: 13
A67: вода | C67: 7 | D67: 10
A68: лук репчатый | C68: 5/4 | D68: 7/6
A69: мука в/с | C69: 3 | D69: 5
A70: соль | C70: 0,3 | D70: 0,3
A71: яйцо куриное | C71: 1 | D71: 1
A72: масло растительное | C72: 1 | D72: 1
A74: Хлеб ржано -пшеничный | C74: 30 | D74: 50 | E74: 1.91 | F74: 3.19 | G74: 0.24 | H74: 0.4 | I74: 12.43 | J74: 20.71 | K74: 52.61 | L74: 99.2 | M74: 0 | N74: 0
A76: Компот из свежих фруктов | B76: 390 | C76: 150 | D76: 180 | E76: 0.04 | F76: 0.05 | G76: 0 | H76: 0 | I76: 12.74 | J76: 15.29 | K76: 51.11 | L76: 61.33 | M76: 0.03 | N76: 0.04
A77: Яблоки | C77: 38/32 | D77: 45/38
A78: Сахарный песок | C78: 8 | D78: 10
A79: Вода | C79: 157 | D79: 188
A80: Итого: | E80: =E76+E74+E64+E53+E42+E34 -> 14.06 | F80: 18.47 | G80: 16.21 | H80: 21.3 | I80: 69.94 | J80: 91.22 | K80: 466.71 | L80: 630.59 | M80: 29.21 | N80: 32.12
A82: Полдник
A83: Кисель | C83: 150 | D83: 190 | E83: 0 | F83: 0 | G83: 0 | H83: 0 | I83: 15.68 | J83: 18.99 | K83: 62.93 | L83: 75.96 | M83: 0 | N83: 0
A84: кисель | C84: 18 | D84: 23
C85: 150 | D85: 190
A87: Пирожок печеный с картофелем | B87: 406 | C87: 60 | D87: 65 | E87: 6.2 | F87: 7.9 | G87: 6.75 | H87: 8.8 | I87: 16.1 | J87: 22.1 | K87: 149.95 | L87: 199.2 | M87: 4.2 | N87: 4.55
A88: тесто: | C88: 45 | D88: 48
A89: мука в/с | C89: 35 | D89: 38
A90: молоко | C90: 10 | D90: 11
A91: масло растительное | C91: 7 | D91: 8
A92: соль пищевая | C92: 2 | D92: 2
A93: дрожжи | C93: 1 | D93: 1
A94: сахарный песок | C94: 1 | D94: 1
A95: яйцо | C95: 1 | D95: 1
A97: Начинка: | C97: 25 | D97: 25
A98: картофель | C98: 36/22 | D98: 36/22
A99: соль | C99: 0.1 | D99: 0.1
A100: лук репчатый | C100: 7/6 | D100: 7/6
A101: масло растительное | C101: 1 | D101: 1
A102: Итого: | E102: =E87+E83 -> 6.2 | F102: 7.9 | G102: 6.75 | H102: 8.8 | I102: 31.78 | J102: 41.09 | K102: 212.88 | L102: 275.16 | M102: 4.2 | N102: 4.55
A103: Итого за 1 день: | E103: =E102+E80+E32+E28 -> 32.32 | F103: 41.69 | G103: 36.58 | H103: 46.04 | I103: 156.69 | J103: 200.49 | K103: 1085.52 | L103: 1395.49 | M103: 35.2 | N103: 38.86

Sheet Меню раскладка 8 день
B1: Меню раскладка 8 день
A3: Наименование блюда | B3: номер рецептуры по сборнику | C3: масса порций, в гр. | E3: Пищевая ценность | K3: Энергетическая ценность | M3: Витамин С
E4: белки | G4: жиры | I4: углеводы
A5: Завтрак | C5: 1-3 года | D5: 3-7 лет | E5: 1-3 года | F5: 3-7 лет | G5: 1-3 года | H5: 3-7 лет | I5: 1-3 года | J5: 3-7 лет | K5: 1-3 года | L5: 3-7 лет | M5: 1-3 года | N5: 3-7 лет
A6: Каша"Дружба" молочная со сливочным маслом | B6: 199 | C6: 130/5/5 | D6: 180/7/7 | E6: 3.02 | F6: 4.2 | G6: 4.2 | H6: 5.8 | I6: 12.96 | J6: 17.94 | K6: 101.53 | L6: 140.6 | M6: 1.62 | N6: 1.95
A7: рис | C7: 9 | D7: 12
A8: пшено | C8: 9 | D8: 12
A9: молоко 2,5 % | C9: 108 | D9: 150
A10: вода | C10: 16 | D10: 22
A11: сахарный песок | C11: 5 | D11: 7
A12: соль | C12: 1 | D12: 1
A13: масло сливочное 72,5% | C13: 5 | D13: 7
A15: Кофейный напиток с молоком | B15: 414 | C15: 150 | D15: 180 | E15: 2.1 | F15: 2.52 | G15: 2.59 | H15: 2.69 | I15: 13.68 | J15: 13.8 | K15: 87.14 | L15: 89.49 | M15: 1.17 | N15: 1.75
A16: кофейный напиток | C16: 2 | D16: 2
A17: сахарный песок | C17: 8 | D17: 9
A18: молоко 2,5% | C18: 75 | D18: 90
A19: вода | C19: 90 | D19: 108
A21: Бутерброд с маслом и сыром | B21: 3 | C21: 40/10/10 | D21: 70 | E21: 3.7 | F21: 4.33 | G21: 2.95 | H21: 3.75 | I21: 15.99 | J21: 20.35 | K21: 105.31 | L21: 132.47 | M21: 0.02 | N21: 0.04
A22: батон | C22: 40 | D22: 50
A23: масло сливочное 72,5% | C23: 10 | D23: 10
A24: сыр твердый | C24: 10 | D24: 10
A25: Итого: | E25: =E21+E15+E6 -> 8.82 | F25: =F21+F15+F6 -> 11.05 | G25: 9.74 | H25: 12.24 | I25: 42.63 | J25: 52.09 | K25: 293.98 | L25: 362.56 | M25: 2.81 | N25: 3.74
A27: 2-ой завтрак
A28: Сок | B28: 418 | C28: 150 | D28: 180 | E28: 0.75 | F28: 0.9 | G28: 0 | H28: 0 | I28: 8.99 | J28: 10.8 | K28: 61.56 | L28: 73.87 | M28: 3.24 | N28: 3.89
A29: Итого: | E29: 0.75 | F29: 0.9 | G29: 0 | H29: 0 | I29: 8.99 | J29: 10.8 | K29: 61.56 | L29: 73.87 | M29: 3.24 | N29: 3.89
A31: Обед
A32: Салат из отварной свеклы | B32: 34 | C32: 40 | D32: 60 | E32: 0.57 | F32: 0.87 | G32: 2.43 | H32: 4.05 | I32: 3.49 | J32: 5.27 | K32: 38.2 | L32: 61.07 | M32: 3.8 | N32: 4.58
A33: Свекла | C33: 49/39 | D33: 73/58
A34: масло растительное | C34: 4 | D34: 6
A36: Суп картофельный с макаронными изделиями с курицей со сметаной | B36: 88 | C36: 180/10/7 | D36: 200/12/8 | E36: 4.59 | F36: 4.9 | G36: 5.09 | H36: 6.45 | I36: 16.02 | J36: 17.8 | K36: 128.25 | L36: 148.85 | M36: 12.96 | N36: 13.4
A37: курица | C37: 22/15 | D37: 25/17
A38: картофель | C38: 100/60 | D38: 111/67
A39: лук репчатый | C39: 4/3 | D39: 5/4
A40: морковь свежая | C40: 9/7 | D40: 10/8
A41: масло растительное | C41: 2 | D41: 3
A42: вода | C42: 126 | D42: 140
A43: соль | C43: 0.5 | D43: 0.5
A44: вермишель | C44: 9 | D44: 14
A45: Сметана 15% | C45: 7 | D45: 8
A47: Голубцы ленивые | B47: 315 | C47: 150 | D47: 190 | E47: 7.3 | F47: 8.1 | G47: 8.2 | H47: 8.5 | I47: 23.4 | J47: 29.64 | K47: 196.6 | L47: 228.36 | M47: 10.5 | N47: 11.8
A48: мясо говядины на кости | C48: 49/36 | D48: 61/45
A49: капуста свежая | C49: 102/82 | D49: 129/103
A50: лук репчатый | C50: 9/8 | D50: 13/11
A51: морковь | C51: 14/11 | D51: 17/14
A52: Крупа рисовая | C52: 8 | D52: 9
A53: масло сливочное 72,5% | C53: 2 | D53: 3
A54: соль | C54: 1 | D54: 1
A56: Хлеб ржано -пшеничный | C56: 30 | D56: 50 | E56: 1.91 | F56: 4.2 | G56: 0.24 | H56: 2.1 | I56: 12.43 | J56: 20.71 | K56: 59.52 | L56: 118.54 | M56: 0 | N56: 0
A58: Компот из сухофруктов | B58: 394 | C58: 150 | D58: 180 | E58: 0.04 | F58: 0.05 | G58: 0 | H58: 0 | I58: 13.4 | J58: 16.08 | K58: 53.79 | L58: 64.55 | M58: 0.03 | N58: 0.04
A59: Смесь компотная | C59: 15 | D59: 18
A60: сахарный песок | C60: 8 | D60: 10
A61: вода | C61: 157 | D61: 188
A62: Итого: | E62: =E58+E56+E47+E36+E32 -> 14.41 | F62: 18.12 | G62: =G58+G56+G47+G36+G32 -> 15.96 | H62: 21.1 | I62: 68.74 | J62: 89.5 | K62: 476.36 | L62: 621.37 | M62: 27.29 | N62: 29.82
A63: Полдник
A64: Булочка сдобная | B64: 452 | C64: 50 | D64: 60 | E64: 2.48 | F64: 4.4 | G64: 3.4 | H64: 4.25 | I64: 19.1 | J64: 26.1 | K64: 116.92 | L64: 160.25 | M64: 0.25 | N64: 0.25
A65: Для теста: | C65: 60 | D65: 70
A66: мука В/с | C66: 34 | D66: 40
A67: молоко 2,5% | C67: 10 | D67: 12
A68: вода | C68: 6 | D68: 7
A69: масло растительное | C69: 5 | D69: 6
A70: соль | C70: 1 | D70: 1
A71: дрожжи сухие | C71: 1 | D71: 1
A72: сахарный песок | C72: 5 | D72: 6
A73: яйцо куриное | C73: 2 | D73: 2
A75: мука в/с | C75: 2 | D75: 2
A76: масло растительное | C76: 1 | D76: 1
A78: Фрукт | B78: 386 | C78: 85 | D78: 85 | E78: 0.72 | F78: 0.72 | G78: 0.2 | H78: 0.2 | I78: 6.48 | J78: 6.48 | K78: 30.6 | L78: 30.6 | M78: 4.8 | N78: 4.8
A80: Кисломолочный продукт | B80: 420 | C80: 150 | D80: 180 | E80: 2.8 | F80: 3.36 | G80: 3.75 | H80: 4.5 | I80: 6 | J80: 7.2 | K80: 68.95 | L80: 82.74 | M80: 0 | N80: 0
A81: Итого: | E81: 6 | F81: 8.48 | G81: 7.35 | H81: 8.95 | I81: 31.58 | J81: 39.78 | K81: 216.47 | L81: 273.59 | M81: 5.05 | N81: 5.05
A83: Итого за 1 день: | E83: 29.98 | F83: 38.55 | G83: 33.05 | H83: 42.29 | I83: 151.94 | J83: 192.17 | K83: 1048.37 | L83: 1331.39 | M83: 38.39 | N83: 42.5

Sheet Меню раскладка 9 день
A1: Меню раскладка 9 день
A3: Наименование блюда | B3: номер рецептуры по сборнику | C3: масса порций, в гр. | E3: Пищевая ценность | K3: Энергетическая ценность | M3: Витамин С
E4: белки | G4: жиры | I4: углеводы
A5: Завтрак | C5: 1-3 года | D5: 3-7 лет | E5: 1-3 года | F5: 3-7 лет | G5: 1-3 года | H5: 3-7 лет | I5: 1-3 года | J5: 3-7 лет | K5: 1-3 года | L5: 3-7 лет | M5: 1-3 года | N5: 3-7 лет
A6: Суп молочный с крупой | B6: 101 | C6: 150 | D6: 180 | E6: 4.2 | F6: 5.04 | G6: 5.03 | H6: 5.7 | I6: 12.52 | J6: 15.02 | K6: 115 | L6: 131.54 | M6: 1.36 | N6: 1.63
A7: молоко 2,5% | C7: 125 | D7: 150
A8: рисовая крупа | C8: 14 | D8: 20
A9: вода | C9: 25 | D9: 30
A10: сахарный песок | C10: 2 | D10: 3
A11: соль | C11: 1 | D11: 1
A12: масло сливочное 72,5% | C12: 2 | D12: 3
A14: Чай сладкий с молоком | B14: 413 | C14: 150 | D14: 180 | E14: 2.03 | F14: 2.71 | G14: 2.32 | H14: 3.1 | I14: 12.18 | J14: 16.24 | K14: 79.23 | L14: 105.65 | M14: 0.94 | N14: 1.26
A15: Чай заварка | C15: 0.4 | D15: 0.5
A16: Сахарный песок | C16: 9 | D16: 10
A17: вода | C17: 120 | D17: 144
A18: Молоко 2,5% | C18: 40 | D18: 48
A20: Бутерброд с повидлом | B20: 2 | C20: 50 | D20: 75 | E20: 1.92 | F20: 2.82 | G20: 2.5 | H20: 3.48 | I20: 17.8 | J20: 23.3 | K20: 101.38 | L20: 135.8 | M20: 0.07 | N20: 0.1
A21: батон | C21: 30 | D21: 50
A22: масло сливочное 72,5% | C22: 5 | D22: 5
A23: повидло | C23: 15 | D23: 20
A24: Итого: | E24: =E20+E14+E6 -> 8.15 | F24: =F20+F14+F6 -> 10.57 | G24: 9.85 | H24: 12.28 | I24: 42.5 | J24: 54.56 | K24: 295.61 | L24: 372.99 | M24: 2.37 | N24: 2.99
A26: 2-ой завтрак
A27: Кисломолочный продукт | B27: 420 | C27: 150 | D27: 180 | E27: 3.12 | F27: 3.74 | G27: 2.69 | H27: 3.23 | I27: 4.53 | J27: 5.44 | K27: 52.72 | L27: 63.26 | M27: 0.3 | N27: 0.4
A28: Итого: | E28: 3.12 | F28: 3.74 | G28: 2.69 | H28: 3.23 | I28: 4.53 | J28: 5.44 | K28: 52.72 | L28: 63.26 | M28: 0.3 | N28: 0.4
A30: Обед
A31: Салат картофельный с солеными огур | B31: 23 | C31: 40 | D31: 60 | E31: 0.32 | F31: 0.48 | G31: 0.04 | H31: 0.06 | I31: 1.04 | J31: 1.56 | K31: 5.8 | L31: 8.7 | M31: 1.72 | N31: 2.61
A32: картофель | C32: 27/16 | D32: 40/24
A33: огурцы соленые | C33: 9/8 | D33: 13/12
A34: лук репчатый | C34: 5/4 | D34: 7/6
A35: яйцо куриное | C35: 4 | D35: 6
A36: морковь | C36: 6/4 | D36: 9/6
A37: масло растительное | C37: 4 | D37: 6
A38: соль | C38: 1 | D38: 1
A40: Щи из свежей капусты с картофелем со сметаной на мкб | B40: 73 | C40: 180/10/7 | D40: 200/12/8 | E40: 4.48 | F40: 6.14 | G40: 7.09 | H40: 9.58 | I40: 6.82 | J40: 7.53 | K40: 109 | L40: 140.9 | M40: 11.86 | N40: 12.22
A41: говядина на кости | C41: 22/16 | D41: 25/19
A42: капуста белокочанная | C42: 55/44 | D42: 61/49
A43: картофель | C43: 73/44 | D43: 81/49
A44: морковь свежая | C44: 11/9 | D44: 12/10
A45: лук репчатый | C45: 9/7 | D45: 10/8
A46: томатная паста | C46: 2 | D46: 2
A47: соль | C47: 1 | D47: 1
A48: масло растительное | C48: 2 | D48: 3
A49: вода | C49: 144 | D49: 160
A50: сметана 15% | C50: 7 | D50: 8
A52: Картофельное пюре | B52: 339 | C52: 120 | D52: 130 | E52: 2.62 | F52: 2.96 | G52: 4.47 | H52: 4.72 | I52: 32 | J52: 34.6 | K52: 178.71 | L52: 192.72 | M52: 8.2 | N52: 11.01
A53: Картофель | C53: 180/108 | D53: 195/117
A54: молоко 2,5% | C54: 19 | D54: 21
A55: масло сливочное 72,5% | C55: 4 | D55: 5
A56: соль | C56: 0.3 | D56: 0.4
A58: Биточки рыбные из минтая | B58: 272 | C58: 50 | D58: 70 | E58: 5.88 | F58: 6.8 | G58: 4.98 | H58: 5.86 | I58: 3.29 | J58: 4.61 | K58: 81.5 | L58: 98.38 | M58: 1.7 | N58: 2.3
A59: минтай с/мороженный | C59: 50/33 | D59: 71/47
A60: хлеб | C60: 6 | D60: 8
A61: вода | C61: 13 | D61: 19
A62: лук репчатый | C62: 13/11 | D62: 18/15
A63: яйцо | C63: 3 | D63: 4
A64: сухари панировочные | C64: 4 | D64: 6
A65: соль | C65: 1 | D65: 1
A66: масло растительное | C66: 1 | D66: 1
A68: Хлеб ржано -пшеничный | C68: 30 | D68: 50 | E68: 1.91 | F68: 3.19 | G68: 0.24 | H68: 0.4 | I68: 12.43 | J68: 20.71 | K68: 52.61 | L68: 99.2 | M68: 0 | N68: 0
A70: Компот из яблок и изюма | B70: 390 | C70: 150 | D70: 180 | E70: 0.21 | F70: 0.21 | G70: 0.06 | H70: 0.06 | I70: 18.92 | J70: 18.92 | K70: 64.62 | L70: 64.62 | M70: 2.21 | N70: 2.21
A71: Яблоки | C71: 17/14 | D71: 21/17
A72: Изюм | C72: 8 | D72: 10
A73: Сахарный песок | C73: 8 | D73: 10
A74: Вода | C74: 152 | D74: 182
A75: Итого: | E75: 15.42 | F75: 19.78 | G75: 16.88 | H75: 20.68 | I75: 74.5 | J75: 87.93 | K75: 492.24 | L75: 604.52 | M75: 25.69 | N75: 30.35
A76: Полдник
A77: Оладьи со сгущенкой | B77: 432 | C77: 80/10 | D77: 120/10 | E77: 5.4 | F77: 7.65 | G77: 6.06 | H77: 8.55 | I77: 25.3 | J77: 34.52 | K77: 177.34 | L77: 245.63 | M77: 0.44 | N77: 0.66
A78: Тесто: | C78: 95 | D78: 141
A79: мука пшеничная в/с | C79: 45 | D79: 68
A80: яйцо куриное | C80: 3 | D80: 4
A81: молоко 2,5% | C81: 39 | D81: 58
A82: дрожжи сухие | C82: 1 | D82: 1
A83: сахарный песок | C83: 1 | D83: 1
A84: соль | C84: 1 | D84: 1
A85: сгущенное молоко | C85: 10 | D85: 10
A86: масло растительное | C86: 4 | D86: 6
A88: Фрукт | B88: 386 | C88: 85 | D88: 85 | E88: 0.72 | F88: 0.72 | G88: 0.68 | H88: 0.68 | I88: 6.48 | J88: 6.48 | K88: 34.4 | L88: 34.4 | M88: 4.8 | N88: 4.8
A90: Чай без сахара | B90: 411 | C90: 150 | D90: 200 | E90: 0.01 | F90: 0.01 | G90: 0 | H90: 0 | I90: 0.02 | J90: 0.03 | K90: 0.06 | L90: 0.09 | M90: 0.04 | N90: 0.05
A91: Чай заварка (сухая) | C91: 0.5 | D91: 0.7
A92: вода | C92: 157 | D92: 210
A93: Итого: | E93: 6.13 | F93: 8.38 | G93: 6.74 | H93: 9.23 | I93: 31.8 | J93: 41.03 | K93: 211.8 | L93: 280.12 | M93: 5.28 | N93: 5.51
A94: Итого за 1 день: | E94: 32.82 | F94: 42.47 | G94: 36.16 | H94: 45.42 | I94: 153.33 | J94: 188.96 | K94: 1052.37 | L94: 1320.89 | M94: 33.64 | N94: 39.25

Sheet Меню раскладка 10 день
B1: Меню раскладка 10 день
A3: Наименование блюда | B3: номер рецептуры по сборнику | C3: масса порций, в гр. | E3: Пищевая ценность | K3: Энергетическая ценность | M3: Витамин С
E4: белки | G4: жиры | I4: углеводы
A5: Завтрак | C5: 1-3 года | D5: 3-7 лет | E5: 1-3 года | F5: 3-7 лет | G5: 1-3 года | H5: 3-7 лет | I5: 1-3 года | J5: 3-7 лет | K5: 1-3 года | L5: 3-7 лет | M5: 1-3 года | N5: 3-7 лет
A6: Каша ячневая молочная жидкая со сливочным маслом | B6: 199 | C6: 150/5/5 | D6: 180/7/7 | E6: 4.06 | F6: 4.8 | G6: 4.92 | H6: 5.78 | I6: 16.56 | J6: 17.22 | K6: 122.76 | L6: 140.1 | M6: 1.45 | N6: 1.89
A7: крупа ячневая | C7: 14 | D7: 19
A8: молоко 2,5% | C8: 125 | D8: 150
A9: вода | C9: 18 | D9: 22
A10: сахарный песок | C10: 5 | D10: 7
A11: соль | C11: 1 | D11: 1
A12: масло сливочное 72,5% | C12: 5 | D12: 7
A14: Какао с молоком | B14: 416 | C14: 150 | D14: 180 | E14: 3.06 | F14: 3.67 | G14: 2.96 | H14: 3.55 | I14: 12.47 | J14: 14.94 | K14: 87.6 | L14: 106.39 | M14: 1.07 | N14: 1.42
A15: какао | C15: 2 | D15: 3
A16: сахарный песок | C16: 8 | D16: 10
A17: молоко 2,5% | C17: 92 | D17: 110
A18: вода | C18: 65 | D18: 78
A20: Бутерброд с маслом | B20: 1 | C20: 30/10 | D20: 50/10 | E20: 1.7 | F20: 2.83 | G20: 1.95 | H20: 3.25 | I20: 13.56 | J20: 22.6 | K20: 64.84 | L20: 108 | M20: 0.02 | N20: 0.04
A21: батон | C21: 30 | D21: 50
A22: масло сливочное 72,5% | C22: 10 | D22: 10
A24: Итого: | E24: =E20+E14+E6 -> 8.82 | F24: =F20+F14+F6 -> 11.3 | G24: 9.83 | H24: 12.58 | I24: 42.59 | J24: 54.76 | K24: 275.2 | L24: 354.49 | M24: 2.54 | N24: 3.35
A26: 2-ой завтрак
A27: Сок | B27: 418 | C27: 150 | D27: 180 | E27: 0.7 | F27: 0.84 | G27: 0 | H27: 0 | I27: 4.1 | J27: 4.92 | K27: 19.2 | L27: 23.04 | M27: 3.24 | N27: 3.89
A28: Итого: | E28: 0.7 | F28: 0.84 | G28: 0 | H28: 0 | I28: 4.1 | J28: 4.92 | K28: 19.2 | L28: 23.04 | M28: 3.24 | N28: 3.89
A30: Обед
A31: Салат из белокочанной капусты | B31: 21 | C31: 40 | D31: 60 | E31: 0.57 | F31: 0.86 | G31: 1.81 | H31: 2.74 | I31: 3.86 | J31: 5.23 | K31: 37.54 | L31: 49.18 | M31: 13.21 | N31: 14.58
A32: капуста | C32: 40/32 | D32: 60/48
A33: морковь | C33: 7/6 | D33: 10/8
A34: масло растительное | C34: 4 | D34: 6
A35: сахар | C35: 2 | D35: 3
A36: соль | C36: 1 | D36: 1
A38: Суп картофельный с бобовыми (гороховый) на мкб | B38: 87 | C38: 180/10 | D38: 200/12 | E38: 5.48 | F38: 6.11 | G38: 4.87 | H38: 5.41 | I38: 11.87 | J38: 13.2 | K38: 117.31 | L38: 125.93 | M38: 6.8 | N38: 9.1
A39: мясо говядины на кости | C39: 22/16 | D39: 25/19
A40: горох | C40: 14 | D40: 15
A41: картофель | C41: 100/60 | D41: 111/67
A42: лук репчатый | C42: 8/6 | D42: 9/7
A43: морковь | C43: 9/7 | D43: 10/8
A44: масло растительное | C44: 2 | D44: 3
A45: вода | C45: 130 | D45: 145
A46: соль | C46: 1 | D46: 1
A48: Плов из говядины | B48: 321 | C48: 150 | D48: 190 | E48: 7.4 | F48: 9.48 | G48: 9.45 | H48: 12.28 | I48: 28.8 | J48: 34.2 | K48: 229.85 | L48: 287.25 | M48: 4.46 | N48: 4.98
A49: говядина | C49: 67/49 | D49: 84/62
A50: Крупа рисовая | C50: 37 | D50: 46
A51: лук репчатый | C51: 7/6 | D51: 8/6
A52: морковь | C52: 10/7 | D52: 13/10
A53: Масло сливочное 72,5% | C53: 6 | D53: 8
A54: Соль | C54: 1 | D54: 1
A55: вода | C55: 98 | D55: 125
A57: Хлеб ржано -пшеничный | C57: 30 | D57: 50 | E57: 1.91 | F57: 3.19 | G57: 0.24 | H57: 0.4 | I57: 12.43 | J57: 20.71 | K57: 52.61 | L57: 99.2 | M57: 0 | N57: 0
A59: Компот из свежих фруктов | B59: 390 | C59: 150 | D59: 180 | E59: 0.04 | F59: 0.05 | G59: 0 | H59: 0 | I59: 12.74 | J59: 15.29 | K59: 51.11 | L59: 61.33 | M59: 0.03 | N59: 0.04
A60: Яблоки | C60: 38/32 | D60: 45/38
A61: Сахарный песок | C61: 8 | D61: 10
A62: Вода | C62: 157 | D62: 188
E63: =E59+E57+E48+E38+E31 -> 15.4 | F63: 19.69 | G63: 16.37 | H63: 20.83 | I63: 69.7 | J63: 88.63 | K63: 488.42 | L63: 622.89 | M63: 24.5 | N63: 28.7
A64: Полдник
A65: Сырники из творога | B65: 245 | C65: 50/10 | D65: 80/20 | E65: 5.3 | F65: 7.13 | G65: 7.15 | H65: 9.19 | I65: 17.57 | J65: 23.77 | K65: 155.83 | L65: 206.31 | M65: 0.22 | N65: 0.36
A66: творог | C66: 51/50 | D66: 82/80
A67: мука | C67: 6 | D67: 10
A68: сахарный песок | C68: 5 | D68: 8
A69: соль | C69: 1 | D69: 1
A70: яйцо | C70: 2 | D70: 3
A71: масло растительное | C71: 2 | D71: 4
A72: молоко сгущенное | C72: 10 | D72: 20
A74: Фрукт | B74: 386 | C74: 85 | D74: 85 | E74: 1.2 | F74: 1.2 | G74: 0.12 | H74: 0.12 | I74: 5.18 | J74: 5.18 | K74: 21.77 | L74: 21.77 | M74: 0.1 | N74: 0.1
A76: Чай с сахаром | B76: 411 | C76: 150/8 | D76: 200/10 | E76: 0.11 | F76: 0.15 | G76: 0.03 | H76: 0.04 | I76: 9.1 | J76: 12.13 | K76: 41.37 | L76: 55.16 | M76: 0.075 | N76: 0.1
A77: чай (заварка) сухая | C77: 0.5 | D77: 0.7
A78: сахарный песок | C78: 8 | D78: 10
C79: 157 | D79: 210
A80: Итого: | E80: 6.61 | F80: 8.48 | G80: 7.3 | H80: 9.35 | I80: 31.85 | J80: 41.08 | K80: 218.97 | L80: 283.24 | M80: 0.395 | N80: 0.32
A81: Итого за 1 день: | E81: =E80+E63+E28+E24 -> 31.53 | F81: 40.31 | G81: 33.5 | H81: 42.76 | I81: 148.24 | J81: 189.39 | K81: 1001.79 | L81: 1283.66 | M81: 30.675 | N81: 36.26

Sheet Лист1
